bitfinex/quotes_BTCUSD_20260310
["timestamp","ask_amount","ask_price","bid_price","bid_amount"]
[1773117427526,0.03,70033.0,70016.0,0.02721489]
[1773117427956,0.00144,70032.0,70018.0,0.02721489]
[1773117428153,0.03,70033.0,70017.0,0.07141122]
[1773117428358,0.03,70033.0,70020.0,0.02721489]
[1773117428535,0.03,70032.0,70020.0,0.02721489]
[1773117428762,0.00144,70034.0,70020.0,0.02721489]
[1773117428967,0.09975431,70048.0,70022.0,0.02721489]
[1773117429144,0.07138174,70046.0,70026.0,0.02721489]
[1773117429333,0.07282072,70047.0,70029.0,0.02768027]
[1773117429591,0.07138181,70046.0,70029.0,0.02768027]
[1773117429795,0.07138181,70046.0,70030.0,0.07139797]
[1773117429796,0.03,70045.0,70030.0,0.07139797]
[1773117430002,0.10138333,70045.0,70031.0,0.02768027]
[1773117430286,0.03,70045.0,70031.0,0.02768027]
[1773117430653,0.00048,70049.0,70031.0,0.02768027]
[1773117430846,0.00048,70049.0,70030.0,0.29997757]
[1773117430847,0.07185886,70049.0,70033.0,0.02768027]
[1773117431201,0.07185886,70049.0,70025.0,0.07140274]
[1773117431202,0.01603265,70043.0,70025.0,0.07140274]
[1773117431403,0.03,70037.0,70025.0,0.07140274]
[1773117431603,0.03,70031.0,70023.0,0.0714051]
[1773117431804,0.03,70029.0,70019.0,0.07140918]
[1773117432031,0.03,70029.0,70019.0,0.07147442]
[1773117433668,0.03,70027.0,70019.0,6.524e-05]
[1773117433845,0.19736388,70028.0,70014.0,0.0714134]
[1773117433846,0.03,70023.0,70014.0,0.0714134]
[1773117434049,0.03,70023.0,70014.0,0.07147881]
[1773117435194,0.03,70023.0,70014.0,6.541e-05]
[1773117435195,0.03,70021.0,70014.0,6.541e-05]
[1773117435396,0.22736388,70021.0,70013.0,0.07141428]
[1773117435598,0.22736388,70021.0,70013.0,0.07149585]
[1773117437734,0.22736388,70021.0,70009.0,0.0002]
[1773117437735,0.10140721,70021.0,70009.0,0.07161881]
[1773117437934,0.10140721,70021.0,70009.0,0.07172736]
[1773117437935,0.22736388,70019.0,70009.0,0.07172736]
[1773117438360,0.03,70019.0,70009.0,0.07172736]
[1773117439436,0.10140932,70019.0,70009.0,0.07172736]
[1773117440075,0.2987732,70019.0,70009.0,0.07172736]
[1773117441164,0.03,70017.0,70009.0,0.07172736]
[1773117441779,0.03,70017.0,70008.0,0.06934686]
[1773117441998,0.03,70017.0,70009.0,0.07141881]
[1773117441999,0.22736388,70017.0,70009.0,0.07141881]
[1773117442229,0.22736388,70014.0,70005.0,0.07142346]
[1773117442431,0.2443701,70014.0,70006.0,0.07142232]
[1773117442615,0.31578499,70014.0,70005.0,0.07180323]
[1773117442849,0.04700622,70012.0,70001.0,0.07162672]
[1773117443067,0.03,70010.0,70001.0,0.0002]
[1773117443272,0.03,70010.0,69994.0,0.0002]
[1773117443273,0.19736388,70007.0,69995.0,0.11133678]
[1773117443490,0.19736388,70007.0,69989.0,0.16758997]
[1773117443491,0.03,70002.0,69989.0,0.07143882]
[1773117443691,0.00144,70001.0,69989.0,0.07143882]
[1773117443899,0.00038008,70012.0,69990.0,0.02768027]
[1773117444107,0.00144,70011.0,69994.0,0.02768027]
[1773117444328,0.01868435,70010.0,69995.0,0.02912027]
[1773117444536,0.00144,70011.0,69997.0,0.02768027]
[1773117444738,0.03144,70010.0,69998.0,0.09911088]
[1773117444992,0.03144,70010.0,69998.0,0.07143061]
[1773117445197,0.03144,70010.0,69999.0,0.02768027]
[1773117446006,0.03144,70010.0,69998.0,0.07143061]
[1773117446215,0.04864391,70008.0,69995.0,0.07143365]
[1773117446419,0.04859689,70004.0,69991.0,0.07143769]
[1773117446624,0.00144,70003.0,69991.0,0.07143769]
[1773117446834,0.03,70001.0,69988.0,0.07144037]
[1773117447086,0.04859689,70001.0,69988.0,0.07144037]
[1773117447662,0.03,69999.0,69988.0,0.07144037]
[1773117448016,0.04854966,69999.0,69987.0,0.0006136]
[1773117448219,0.01850221,69998.0,69987.0,0.0006136]
[1773117448420,0.03144,69997.0,69987.0,0.0006136]
[1773117448659,0.03,69995.0,69987.0,0.0006136]
[1773117448870,0.03,69993.0,69987.0,0.02829387]
[1773117449096,0.07143322,69996.0,69987.0,0.09973553]
[1773117449097,0.00144,69995.0,69987.0,0.09973553]
[1773117449681,0.00144,69995.0,69987.0,0.02829387]
[1773117449885,0.03144,69995.0,69987.0,0.02829387]
[1773117450749,0.03144,69995.0,69987.0,0.0006136]
[1773117450925,0.03,69993.0,69987.0,0.0006136]
[1773117453262,0.0014,69999.0,69989.0,0.02768027]
[1773117453638,0.19695049,69998.0,69987.0,0.0004136]
[1773117453888,0.21521243,69996.0,69984.0,0.0770647]
[1773117454185,0.0014,69999.0,69985.0,0.02768027]
[1773117454524,0.0014,69999.0,69985.0,0.01768027]
[1773117455001,0.03,70000.0,69985.0,0.01768027]
[1773117455164,0.07143163,69997.0,69986.0,0.07144286]
[1773117455374,0.03,69996.0,69986.0,0.07144286]
[1773117455716,0.03,69996.0,69985.0,0.08912371]
[1773117456062,0.03,69996.0,69986.0,0.02768027]
[1773117456269,0.03,69995.0,69984.0,0.00562]
[1773117456496,0.03,69995.0,69984.0,0.07706473]
[1773117457240,0.03,69994.0,69984.0,0.07706473]
[1773117457862,0.04143367,69995.0,69984.0,0.07706473]
[1773117458023,0.04143367,69995.0,69987.0,0.02768027]
[1773117459515,0.03,69995.0,69987.0,0.02768027]
[1773117459949,0.07143367,69996.0,69988.0,0.02930752]
[1773117465416,0.07143367,69996.0,69986.0,0.20098299]
[1773117465417,0.07143367,69996.0,69986.0,0.0002]
[1773117465726,0.07143367,69996.0,69986.0,0.07160269]
[1773117467411,0.07143367,69997.0,69986.0,0.07160269]
[1773117467616,0.03,69996.0,69988.0,0.07144081]
[1773117467823,0.03,69996.0,69989.0,0.02930752]
[1773117468360,0.03022001,69996.0,69989.0,0.02930752]
[1773117469368,0.10165272,69996.0,69989.0,0.02930752]
[1773117472050,0.03022001,69996.0,69989.0,0.02930752]
[1773117473065,0.10165276,69996.0,69989.0,0.02930752]
[1773117475086,0.10165276,69996.0,69986.0,0.10157486]
[1773117475341,0.10165276,69996.0,69986.0,0.10157549]
[1773117476488,0.03022001,69996.0,69987.0,0.02997279]
[1773117477147,0.10165278,69996.0,69987.0,0.02997279]
[1773117477553,0.10165278,69996.0,69986.0,0.0716027]
[1773117479233,0.10165278,69996.0,69986.0,0.23919267]
[1773117479756,0.10165278,69996.0,69986.0,0.26916546]
[1773117480963,0.10165278,69996.0,69986.0,0.23919267]
[1773117481328,0.05842803,69994.0,69985.0,0.0002]
[1773117482304,0.03,69993.0,69980.0,0.0002]
[1773117482506,0.07165278,69996.0,69980.0,0.0002]
[1773117482507,0.03,69989.0,69980.0,0.0002]
[1773117483097,0.10144056,69989.0,69980.0,0.0002]
[1773117483301,0.10144056,69989.0,69976.0,0.00144]
[1773117483302,0.10144056,69989.0,69972.0,0.16793997]
[1773117483303,0.20436913,69986.0,69972.0,0.16793997]
[1773117483507,0.05850825,69979.0,69969.0,0.16758997]
[1773117483681,0.03,69977.0,69969.0,0.23904983]
[1773117484145,0.03,69977.0,69969.0,0.07145986]
[1773117484350,0.00144,69978.0,69970.0,0.02997279]
[1773117484499,0.07165328,69996.0,69980.0,0.02997279]
[1773117484500,0.00144,69987.0,69980.0,0.02997279]
[1773117484683,0.00144,69988.0,69980.0,0.1998263]
[1773117484884,0.00144,69988.0,69981.0,0.02997279]
[1773117485085,0.07143571,69993.0,69981.0,0.02997279]
[1773117485291,0.00144,69988.0,69981.0,0.02997279]
[1773117486329,0.00144,69988.0,69980.0,0.07176184]
[1773117486702,0.03,69986.0,69977.0,0.07145177]
[1773117486899,0.05839383,69986.0,69977.0,0.00011371]
[1773117487106,0.03,69986.0,69977.0,0.0300865]
[1773117487503,0.03,69986.0,69978.0,0.07145102]
[1773117487820,0.00144,69988.0,69978.0,0.07145102]
[1773117488437,0.10143984,69989.0,69978.0,0.07145102]
[1773117488755,0.00144,69988.0,69978.0,0.07145102]
[1773117489051,0.00144,69988.0,69979.0,0.02997279]
[1773117489230,0.00144,69988.0,69978.0,0.07145102]
[1773117489591,0.00144,69988.0,69977.0,0.00011371]
[1773117490692,0.00144,69988.0,69977.0,0.03112147]
[1773117490912,0.03,69987.0,69977.0,0.00011371]
[1773117491753,0.03,69987.0,69977.0,0.07156575]
[1773117492789,0.03,69987.0,69977.0,0.07176575]
[1773117493487,0.10144207,69987.0,69977.0,0.00031371]
[1773117493670,0.03,69985.0,69977.0,0.00031371]
[1773117494264,0.03,69985.0,69977.0,0.07176519]
[1773117495112,0.03,69987.0,69977.0,0.07176519]
[1773117496172,0.03144,69988.0,69977.0,0.07176519]
[1773117496808,0.10288083,69988.0,69977.0,0.07176519]
[1773117497566,0.03,69986.0,69973.0,0.0002]
[1773117497783,0.07288083,69988.0,69973.0,0.07176918]
[1773117497784,0.03,69984.0,69973.0,0.07176918]
[1773117498675,0.03,69983.0,69974.0,0.03100776]
[1773117499596,0.03,69983.0,69975.0,0.07145409]
[1773117499832,0.03144,69982.0,69975.0,0.07145409]
[1773117500787,0.00144,69983.0,69976.0,0.03100776]
[1773117501830,0.00144,69985.0,69977.0,0.1024598]
[1773117502165,0.00144,69985.0,69978.0,0.03100776]
[1773117502861,0.00144,69985.0,69978.0,0.02100776]
[1773117504284,0.0714314,69998.0,69982.0,0.19971265]
[1773117504285,0.00144,69998.0,69982.0,0.19971265]
[1773117504455,0.03023,70000.0,69986.0,0.19971265]
[1773117504456,0.00166001,69996.0,69986.0,0.19971265]
[1773117504656,0.00166001,69996.0,69987.0,0.03100776]
[1773117506251,0.00166001,69996.0,69988.0,0.07144081]
[1773117507215,0.00166001,69996.0,69989.0,0.03100776]
[1773117507412,0.00166001,69996.0,69988.0,0.07144081]
[1773117508228,0.00166001,69996.0,69988.0,0.10244857]
[1773117511041,0.00166001,69996.0,69989.0,0.03100776]
[1773117512044,0.00166001,69996.0,69988.0,0.07143986]
[1773117512842,0.00023,70000.0,69988.0,0.07143986]
[1773117513042,0.00144,70007.0,69993.0,0.03100776]
[1773117513247,0.00562,70012.0,69998.0,0.03100776]
[1773117513448,0.00167,70025.0,70004.0,0.20747942]
[1773117513684,0.00167,70025.0,70011.0,0.03100776]
[1773117514143,0.27091406,70030.0,70011.0,0.03100776]
[1773117514144,0.0304171,70037.0,70016.0,0.20747942]
[1773117514324,0.22951576,70027.0,70007.0,0.03244776]
[1773117514527,0.03,70021.0,70007.0,0.03112155]
[1773117514915,0.19951576,70024.0,70007.0,0.03112155]
[1773117514916,0.03,70019.0,70007.0,0.00011379]
[1773117515127,0.03,70019.0,70007.0,0.07153521]
[1773117515128,0.06195105,70019.0,70007.0,0.07153521]
[1773117515924,0.06215195,70019.0,70007.0,0.07153521]
[1773117516480,0.03,70016.0,70007.0,0.00011379]
[1773117516688,0.07305032,70019.0,70003.0,0.07142489]
[1773117516689,0.06051105,70012.0,70003.0,0.07142489]
[1773117516901,0.06071195,70012.0,70003.0,0.07153871]
[1773117517129,0.00144,70011.0,70003.0,0.00011382]
[1773117517437,0.03,70009.0,70003.0,0.00011382]
[1773117517662,0.19951576,70008.0,69998.0,0.07143043]
[1773117517787,0.03,70005.0,69998.0,0.00011396]
[1773117517988,0.03144,70005.0,69998.0,0.00011396]
[1773117518640,0.03144,70005.0,69992.0,0.20747942]
[1773117518641,0.03,70001.0,69993.0,0.07143552]
[1773117518783,0.03,70001.0,69993.0,0.07154951]
[1773117519433,0.03,70001.0,69993.0,0.00011399]
[1773117519583,0.03,70004.0,69993.0,0.00011399]
[1773117519790,0.03,70000.0,69993.0,0.00011399]
[1773117519986,0.00144,69999.0,69993.0,0.00011399]
[1773117520890,0.03144,69999.0,69993.0,0.00011399]
[1773117522055,0.03,69998.0,69993.0,0.00011399]
[1773117522654,0.03,69996.0,69986.0,0.07144278]
[1773117522868,0.03,69996.0,69986.0,0.07155679]
[1773117523419,0.1296918,69996.0,69986.0,0.07155679]
[1773117523650,0.1296918,69996.0,69981.0,0.00144]
[1773117523651,0.03,69992.0,69980.0,0.0002]
[1773117523850,0.03,69988.0,69980.0,0.07164835]
[1773117524308,0.03,69988.0,69980.0,0.0002]
[1773117524518,0.05825875,69982.0,69975.0,0.00023]
[1773117524656,0.03,69980.0,69975.0,0.07145389]
[1773117525081,0.03,69980.0,69974.0,0.071455]
[1773117525691,0.03,69979.0,69973.0,0.07165516]
[1773117525892,0.07143949,69990.0,69973.0,0.07165516]
[1773117525893,0.07155106,69992.0,69975.0,0.20747942]
[1773117526059,0.07155106,69992.0,69981.0,0.03089162]
[1773117526261,0.00144,69991.0,69980.0,0.07624294]
[1773117526461,0.02969875,69991.0,69974.0,0.00144]
[1773117526813,0.03,69990.0,69974.0,0.03233162]
[1773117527120,0.03,69990.0,69978.0,0.03089162]
[1773117527276,0.03,69990.0,69980.0,0.07624294]
[1773117527610,0.03,69990.0,69978.0,0.03089162]
[1773117527834,0.03,69989.0,69979.0,0.07145]
[1773117528820,0.03144,69991.0,69979.0,0.07145]
[1773117529081,0.03144,69991.0,69979.0,0.07165]
[1773117529951,0.03,69989.0,69979.0,0.07165]
[1773117531563,0.03,69989.0,69979.0,0.0002]
[1773117531781,0.05825875,69986.0,69973.0,0.0002]
[1773117532180,0.00144,69985.0,69973.0,0.0002]
[1773117532362,0.00144,69985.0,69973.0,0.03109162]
[1773117533799,0.03144,69985.0,69973.0,0.0002]
[1773117534004,0.05969875,69985.0,69973.0,0.0002]
[1773117535540,0.05969875,69985.0,69970.0,0.0002]
[1773117535541,0.03,69980.0,69970.0,0.0002]
[1773117535710,0.03,69976.0,69966.0,0.0002]
[1773117536010,0.1014553,69974.0,69966.0,0.0002]
[1773117536212,0.00144,69973.0,69966.0,0.0002]
[1773117536706,0.03,69971.0,69964.0,0.0002]
[1773117537134,0.07145472,69975.0,69964.0,0.0002]
[1773117537135,0.07143346,69996.0,69966.0,0.02862395]
[1773117537353,0.07143346,69996.0,69964.0,0.0002]
[1773117537354,0.03085783,69991.0,69970.0,0.07625991]
[1773117537635,0.03085783,69989.0,69970.0,0.02882395]
[1773117537795,0.03,69986.0,69970.0,0.0292038]
[1773117537991,0.03,69984.0,69971.0,0.07145817]
[1773117538198,0.00144,69983.0,69971.0,0.07145817]
[1773117538537,0.00144,69983.0,69970.0,0.10066217]
[1773117538735,0.03,69982.0,69970.0,0.00057985]
[1773117538969,0.03,69974.0,69964.0,0.07166511]
[1773117539178,0.06085783,69972.0,69964.0,0.07166511]
[1773117540181,0.06085783,69972.0,69964.0,0.0002]
[1773117541560,0.06085783,69972.0,69963.0,0.07166532]
[1773117541561,0.06085783,69970.0,69963.0,0.0002]
[1773117541729,0.06085783,69970.0,69961.0,0.07179381]
[1773117541935,0.06085783,69970.0,69961.0,0.0003255]
[1773117542135,0.06085783,69970.0,69960.0,0.07146935]
[1773117542136,0.03,69964.0,69950.0,0.00023]
[1773117542341,0.06085783,69960.0,69950.0,0.07170888]
[1773117543413,0.00144,69963.0,69950.0,0.07170888]
[1773117543414,0.03,69959.0,69950.0,0.00023]
[1773117543614,0.03,69957.0,69951.0,0.02862395]
[1773117543765,0.03144,69957.0,69951.0,0.02862395]
[1773117544464,0.03,69956.0,69950.0,0.00023]
[1773117544894,0.03,69956.0,69950.0,0.00043]
[1773117545113,0.03,69956.0,69950.0,0.07190947]
[1773117545532,0.00144,69957.0,69950.0,0.07190947]
[1773117545919,0.00144,69957.0,69950.0,0.07176316]
[1773117546648,0.00144,69957.0,69950.0,0.00028369]
[1773117546794,0.00144,69957.0,69950.0,0.07176317]
[1773117548483,0.03144,69957.0,69950.0,0.07176317]
[1773117548957,0.03144,69957.0,69950.0,0.07161688]
[1773117549372,0.00144,69957.0,69950.0,0.07161688]
[1773117550932,0.03144,69957.0,69950.0,0.07161688]
[1773117551558,0.03144,69957.0,69950.0,0.0001374]
[1773117551764,0.03144,69957.0,69949.0,0.07147995]
[1773117552573,0.03144,69957.0,69949.0,0.07133365]
[1773117552856,0.03144,69957.0,69950.0,0.0002]
[1773117553045,0.00144,69957.0,69950.0,5.371e-05]
[1773117553287,0.03091339,69972.0,69952.0,0.02798716]
[1773117553502,0.00022001,69967.0,69955.0,0.02798716]
[1773117553702,0.0311334,69967.0,69951.0,0.02798716]
[1773117553996,0.00144,69966.0,69951.0,0.02798716]
[1773117554171,0.03,69965.0,69951.0,0.02798716]
[1773117555000,0.06091339,69965.0,69951.0,0.02798716]
[1773117557289,0.00060042,69974.0,69955.0,0.19443075]
[1773117557510,0.00060042,69974.0,69958.0,0.02798716]
[1773117557648,0.00144,69973.0,69961.0,0.19443075]
[1773117557967,0.00144,69973.0,69963.0,0.19443075]
[1773117558176,0.00144,69973.0,69964.0,0.02798716]
[1773117558585,0.07205607,69974.0,69964.0,0.02798716]
[1773117558798,0.00144,69972.0,69964.0,0.02798716]
[1773117559174,0.00144,69972.0,69961.0,0.07146828]
[1773117559376,0.00144,69972.0,69961.0,0.07132198]
[1773117559618,0.06091339,69971.0,69961.0,0.07132198]
[1773117559785,0.06091339,69971.0,69961.0,0.07117571]
[1773117560713,0.03,69971.0,69957.0,0.00144]
[1773117560910,0.03,69965.0,69950.0,0.07153325]
[1773117561087,0.03,69963.0,69950.0,0.07153325]
[1773117561408,0.03,69963.0,69950.0,5.371e-05]
[1773117561409,0.03,69961.0,69950.0,5.371e-05]
[1773117561589,0.03,69959.0,69950.0,5.371e-05]
[1773117563226,0.06091339,69959.0,69950.0,5.371e-05]
[1773117563422,0.00144,69958.0,69950.0,5.371e-05]
[1773117563625,0.00144,69962.0,69952.0,0.19443075]
[1773117563965,0.00144,69961.0,69954.0,0.19443075]
[1773117564167,0.00144,69961.0,69955.0,0.02798716]
[1773117564378,0.03,69970.0,69956.0,0.19443075]
[1773117564537,0.0714511,69978.0,69954.0,0.00144]
[1773117564538,0.00022001,69980.0,69961.0,0.19443075]
[1773117564693,0.00022001,69980.0,69954.0,0.00144]
[1773117564694,0.03235339,69979.0,69963.0,0.02798716]
[1773117565106,0.06091339,69978.0,69963.0,0.02798716]
[1773117565307,0.00144,69977.0,69963.0,0.02798716]
[1773117565709,0.03,69973.0,69964.0,0.07146532]
[1773117565908,0.06091339,69973.0,69964.0,0.07146532]
[1773117566938,0.00562,69984.0,69964.0,0.07146532]
[1773117567140,0.00562,69984.0,69972.0,0.02798716]
[1773117567340,0.00706,69984.0,69975.0,0.19443075]
[1773117567543,0.00706,69984.0,69976.0,0.02798716]
[1773117567715,0.00706,69984.0,69977.0,0.07145204]
[1773117568114,0.00706,69984.0,69976.0,0.07145293]
[1773117568370,0.00706,69984.0,69972.0,8.15e-05]
[1773117568371,0.03091339,69982.0,69972.0,8.15e-05]
[1773117568571,0.0311334,69982.0,69972.0,8.15e-05]
[1773117568929,0.0311334,69982.0,69972.0,0.07153847]
[1773117570129,0.0311334,69982.0,69972.0,8.15e-05]
[1773117570721,0.03091339,69981.0,69966.0,0.07146226]
[1773117570890,0.03091339,69979.0,69966.0,0.07146226]
[1773117571087,0.03091339,69977.0,69966.0,0.07146226]
[1773117571385,0.00144,69978.0,69967.0,0.02798716]
[1773117571590,0.00144,69978.0,69969.0,0.02798716]
[1773117571772,0.00144,69978.0,69970.0,0.02798716]
[1773117572192,0.07145204,69977.0,69964.0,0.02798716]
[1773117572392,0.00144,69977.0,69964.0,0.02798716]
[1773117572774,0.00144,69977.0,69962.0,0.07146736]
[1773117572971,0.03091339,69976.0,69962.0,0.07146736]
[1773117573180,0.03091339,69975.0,69962.0,0.07146736]
[1773117575003,0.03091339,69973.0,69961.0,0.07166736]
[1773117577025,0.07145511,69974.0,69962.0,0.02798716]
[1773117577877,8.689e-05,69981.0,69965.0,0.1982162]
[1773117578114,0.07143899,69990.0,69972.0,0.1982162]
[1773117578342,0.0015718,69985.0,69976.0,0.1982162]
[1773117578544,0.0015718,69985.0,69977.0,0.02784085]
[1773117578712,0.0001318,69985.0,69977.0,0.02784085]
[1773117579083,0.0001318,69985.0,69978.0,0.07145102]
[1773117579288,0.0001318,69985.0,69978.0,0.10056498]
[1773117580459,0.0001318,69985.0,69978.0,0.07130471]
[1773117581118,0.0001318,69985.0,69977.0,0.07145102]
[1773117582344,0.0001318,69985.0,69977.0,0.10056498]
[1773117583084,0.00035181,69985.0,69977.0,0.10056498]
[1773117589321,0.00035181,69985.0,69967.0,0.07146165]
[1773117589322,0.03,69981.0,69967.0,0.07146165]
[1773117589523,0.03,69975.0,69967.0,0.0718425]
[1773117589643,0.00144,69974.0,69967.0,0.0718425]
[1773117590301,0.00144,69974.0,69967.0,0.00038041]
[1773117591496,0.00144,69974.0,69967.0,0.07184197]
[1773117592145,0.03144,69974.0,69967.0,0.07184197]
[1773117592784,0.07144747,69982.0,69970.0,0.02946632]
[1773117592986,0.02883517,69981.0,69967.0,0.07184197]
[1773117593186,0.03,69980.0,69967.0,0.07184197]
[1773117593385,0.03,69978.0,69967.0,0.07184197]
[1773117593598,0.10145192,69978.0,69967.0,0.07184197]
[1773117596550,0.00035181,69985.0,69970.0,0.20113672]
[1773117596753,0.00144,69983.0,69973.0,0.02946632]
[1773117597159,0.00022001,69989.0,69971.0,0.02946632]
[1773117597362,0.00022001,69989.0,69974.0,0.20113672]
[1773117597565,0.00022001,69989.0,69978.0,0.20113672]
[1773117597566,0.00166001,69987.0,69978.0,0.20113672]
[1773117597732,0.00022001,69985.0,69980.0,0.20113672]
[1773117597937,0.00022001,69985.0,69981.0,0.02946632]
[1773117598561,0.00022001,69992.0,69982.0,0.07144694]
[1773117598773,0.00022001,69992.0,69983.0,0.02946632]
[1773117599754,0.00166001,69992.0,69983.0,0.02946632]
[1773117599947,0.00166001,69992.0,69985.0,0.02946632]
[1773117600609,0.00166001,69992.0,69985.0,0.07144315]
[1773117600755,0.00166001,69992.0,69980.0,0.07144839]
[1773117600756,0.03,69989.0,69980.0,0.07144839]
[1773117600966,0.03,69987.0,69980.0,0.07144839]
[1773117601175,0.03,69987.0,69979.0,0.07144914]
[1773117602329,0.02739517,69985.0,69972.0,0.11261189]
[1773117602482,0.00144,69986.0,69972.0,0.11261189]
[1773117602483,0.05739517,69982.0,69972.0,0.071457]
[1773117602682,0.03,69980.0,69968.0,0.07146123]
[1773117602888,0.0714391,69990.0,69971.0,0.20113672]
[1773117603092,0.00144,69989.0,69975.0,0.20113672]
[1773117603327,0.07143826,69991.0,69980.0,0.02946632]
[1773117603328,0.00144,69988.0,69980.0,0.02946632]
[1773117603529,0.07143826,69991.0,69980.0,0.02946632]
[1773117603530,0.00144,69987.0,69980.0,0.02946632]
[1773117603888,0.03,69990.0,69980.0,0.02946632]
[1773117604111,0.00144,69989.0,69980.0,0.02946632]
[1773117604512,0.00144,69988.0,69980.0,0.02946632]
[1773117604730,0.00022001,69987.0,69981.0,0.07144796]
[1773117605277,0.03,69986.0,69979.0,0.07144958]
[1773117606036,0.03022001,69987.0,69979.0,0.07144958]
[1773117606356,0.03022001,69987.0,69980.0,0.02946632]
[1773117606579,0.00144,69986.0,69980.0,0.2037874]
[1773117606863,0.07165716,69992.0,69981.0,0.07144796]
[1773117607009,0.00144,69991.0,69982.0,0.2037874]
[1773117607211,0.00144,69997.0,69986.0,0.2037874]
[1773117607464,0.00144,69997.0,69989.0,0.02946632]
[1773117608680,0.00053255,69996.0,69990.0,0.07143877]
[1773117610377,0.03053255,69996.0,69990.0,0.07143877]
[1773117613981,0.03053255,69996.0,69984.0,0.0714449]
[1773117617606,0.07140955,70019.0,69984.0,0.0714449]
[1773117617841,0.07141429,70014.0,69993.0,0.02799825]
[1773117618075,0.00690009,70020.0,69996.0,0.2037874]
[1773117618208,0.00023,70025.0,70001.0,0.2037874]
[1773117618417,0.00144,70024.0,70005.0,0.2037874]
[1773117618663,0.03,70023.0,70010.0,0.02799825]
[1773117618997,0.03,70023.0,70013.0,0.2037874]
[1773117619124,0.03,70023.0,70008.0,0.00144]
[1773117619125,0.00144,70024.0,70015.0,0.02799825]
[1773117619329,0.00023,70025.0,70016.0,0.02799825]
[1773117619530,0.00011406,70025.0,70017.0,0.02799825]
[1773117620360,0.00011406,70025.0,70010.0,0.2037874]
[1773117620361,0.03,70024.0,70010.0,0.2037874]
[1773117620562,0.03,70024.0,70011.0,0.00144]
[1773117620765,0.03,70024.0,70011.0,0.02943825]
[1773117620978,0.03166001,70024.0,70011.0,0.02943825]
[1773117621172,0.03,70022.0,70009.0,0.07141938]
[1773117621367,0.03,70020.0,70009.0,0.07141938]
[1773117621754,0.03,70016.0,70000.0,0.07165843]
[1773117621952,0.03,70014.0,70001.0,0.07142755]
[1773117622382,0.03,70012.0,70001.0,0.07142755]
[1773117622702,0.03,70012.0,70003.0,0.2037874]
[1773117622876,0.0714094,70019.0,70007.0,0.2037874]
[1773117623079,0.0714094,70019.0,70010.0,0.02799825]
[1773117623276,0.00144,70018.0,70012.0,0.02799825]
[1773117623463,0.00144,70020.0,70005.0,0.2037874]
[1773117623654,0.00144,70020.0,70008.0,0.02799825]
[1773117624673,0.03144,70020.0,70009.0,0.07141938]
[1773117624910,0.03144,70020.0,70009.0,0.09941763]
[1773117625109,0.03,70020.0,70009.0,0.09941763]
[1773117625436,0.00144,70019.0,70009.0,0.09941763]
[1773117625633,0.00144,70019.0,70010.0,0.02799825]
[1773117626890,0.00144,70019.0,70011.0,0.07141734]
[1773117627092,0.00144,70019.0,70011.0,0.09941559]
[1773117628116,0.00144,70019.0,70012.0,0.2037874]
[1773117628318,0.00144,70019.0,70011.0,0.07141734]
[1773117628319,0.03,70019.0,70014.0,0.02799825]
[1773117628518,0.03,70019.0,70011.0,0.07141734]
[1773117628519,0.00144,70020.0,70016.0,0.02799825]
[1773117628723,0.00144,70022.0,70017.0,0.2037874]
[1773117628930,0.00144,70022.0,70018.0,0.02799825]
[1773117629129,0.00144,70022.0,70011.0,0.07141734]
[1773117629130,0.07140714,70021.0,70011.0,0.07141734]
[1773117629332,0.03,70020.0,70009.0,0.07141867]
[1773117630128,0.03,70020.0,70011.0,0.2037874]
[1773117630327,0.03,70020.0,70012.0,0.02799825]
[1773117631138,0.03,70019.0,70012.0,0.09941419]
[1773117631535,0.03,70019.0,70012.0,0.07141594]
[1773117631739,0.03,70019.0,70013.0,0.02799825]
[1773117631968,0.03,70019.0,70013.0,0.2037874]
[1773117632173,0.03,70021.0,70014.0,0.02799825]
[1773117633086,0.03,70020.0,70015.0,0.07141326]
[1773117633302,0.03,70020.0,70015.0,0.09941151]
[1773117633727,0.03,70020.0,70015.0,0.07141326]
[1773117634079,0.03,70021.0,70015.0,0.07141326]
[1773117634920,0.03,70021.0,70013.0,0.07141445]
[1773117637557,0.07284538,70023.0,70014.0,0.02799825]
[1773117637558,0.03,70020.0,70014.0,0.02799825]
[1773117637968,0.03,70020.0,70016.0,0.20105278]
[1773117638162,0.03,70020.0,70017.0,0.02799825]
[1773117638769,0.03,70022.0,70019.0,0.02799825]
[1773117638981,0.00022001,70024.0,70019.0,0.02799825]
[1773117638982,0.00022001,70024.0,70019.0,0.22905103]
[1773117639280,0.00022001,70024.0,70018.0,0.0714102]
[1773117640060,0.00022001,70024.0,70016.0,0.0714102]
[1773117641412,6.003e-05,70024.0,70016.0,0.0714102]
[1773117641613,0.03040589,70025.0,70016.0,0.0714102]
[1773117641796,0.03,70024.0,70016.0,0.09959904]
[1773117642873,0.00144,70024.0,70016.0,0.09959904]
[1773117645304,0.03,70023.0,70016.0,0.09959904]
[1773117646206,0.03,70022.0,70016.0,0.09959904]
[1773117647228,0.03144,70024.0,70016.0,0.09959904]
[1773117648395,0.03144,70024.0,70016.0,0.0714102]
[1773117650374,0.11396068,70042.0,70016.0,0.0714102]
[1773117650375,0.07750843,70040.0,70016.0,0.0714102]
[1773117650672,0.00015,70042.0,70016.0,0.0714102]
[1773117650673,0.00015,70042.0,70032.0,0.18907684]
[1773117650902,0.11402968,70055.0,70037.0,0.18907684]
[1773117651030,0.000219,70055.0,70047.0,0.028489]
[1773117651232,0.000219,70055.0,70048.0,0.18907684]
[1773117651455,0.000219,70055.0,70049.0,0.18907684]
[1773117651652,0.000219,70055.0,70051.0,0.028489]
[1773117651875,0.030219,70055.0,70051.0,0.028489]
[1773117652032,0.030219,70055.0,70051.0,0.21756584]
[1773117652238,0.10197209,70055.0,70044.0,0.00144]
[1773117652456,0.10197209,70055.0,70043.0,0.07138472]
[1773117652643,0.10197209,70055.0,70044.0,0.00144]
[1773117653057,0.10197209,70055.0,70044.0,0.028489]
[1773117653254,0.10197209,70055.0,70045.0,0.028489]
[1773117653431,0.10197209,70055.0,70046.0,0.18907684]
[1773117653658,0.10197209,70055.0,70046.0,0.21756584]
[1773117653868,0.03,70054.0,70046.0,0.21756584]
[1773117654060,0.03,70054.0,70047.0,0.028489]
[1773117655154,0.03,70053.0,70047.0,0.28894566]